[Event "NOR-ch Youth 2019"]
[Site "Skien"]
[Date "2019.11.09"]
[Round "3.18"]
[White "Helliesen, Lykke-Merlot"]
[Black "Dobroliubov, Yan"]
[Result "1-0"]
[ECO "D02"]
[WhiteElo "1619"]
[BlackElo "1604"]
[Annotator "NA RC"]
[PlyCount "83"]
[EventDate "2019.11.08"]
[EventType "swiss"]
[EventCountry "NOR"]
[SourceTitle "playchess.com"]
[Source "ChessBase"]
[SourceQuality "1"]
[TimeControl "2400+10"]

1. d4 {[%emt 0:00:00]} d5 {[%emt 0:00:00]} 2. Bf4 {[%emt 0:00:00]} Nf6 {[%emt 0:00:07]} 3. e3 {[%emt 0:00:03]} e6 {[%emt 0:00:06]} 4. Nf3 {[%emt 0:00:08]} c5 {[%emt 0:00:23]} 5. c3 {[%emt 0:00:15]} Nc6 {[%emt 0:00:18]} 6. Nbd2 {[%emt 0:00:21]} Qb6 {[%emt 0:02:37]} 7. Qb3 {[%emt 0:00:30]} Na5 {[%emt 0:02:10]} 8. Qc2 {[%emt 0:01:12]} Nh5 {[%emt 0:02:03]} 9. Bg3 {[%emt 0:01:48]} Nxg3 {[%emt 0:00:20]} 10. hxg3 {[%emt 0:00:02]} Bd7 {[%emt 0:06:03]} 11. dxc5 {[%emt 0:03:58]} Qc7 {[%emt 0:03:12]} 12. b4 {[%emt 0:01:25]} Nc6 {[%emt 0:01:18]} 13. Rxh7 {[%emt 0:01:48]} Rxh7 {[%emt 0:00:15]} 14. Qxh7 {[%emt 0:00:03]} a5 {[%emt 0:00:17]} 15. Qb1 {[%emt 0:02:30]} axb4 {[%emt 0:01:42]} 16. cxb4 {[%emt 0:00:07]} Ra4 {[%emt 0:00:28]} 17. a3 {[%emt 0:00:47]} b6 {[%emt 0:00:15]} 18. b5 {[%emt 0:02:36]} Nd8 {[%emt 0:06:59]} 19. c6 {[%emt 0:01:26]} Bc8 {[%emt 0:00:04]} 20. Qb3 {[%emt 0:00:15]} Qa7 {[%emt 0:00:15]} 21. Nb1 {[%emt 0:06:43]} Be7 {[%emt 0:04:46]} 22. Be2 {[%emt 0:03:16]} f6 {[%emt 0:00:50]} 23. Bd1 {[%emt 0:02:11]} Ra5 {[%emt 0:00:27]} 24. a4 {[%emt 0:00:21]} Nf7 {[%emt 0:01:38]} 25. Nc3 {[%emt 0:00:41]} Nd6 {[%emt 0:00:19]} 26. Nd2 {[%emt 0:00:52]} Qa8 {[%emt 0:01:45]} 27. e4 {[%emt 0:03:12]} d4 {[%emt 0:00:24]} 28. Ne2 {[%emt 0:00:08]} Nxb5 {[%emt 0:00:41]} 29. Nc4 {[%emt 0:00:40]} Nc7 {[%emt 0:02:22]} 30. Nxa5 {[%emt 0:00:31]} Qxa5+ {[%emt 0:00:02]} 31. Kf1 {[%emt 0:00:03]} Nb5 {[%emt 0:00:23]} 32. Qxb5 {[%emt 0:00:17]} Qd2 {[%emt 0:00:09]} 33. c7+ {[%emt 0:00:13]} Kf7 {[%emt 0:00:02]} 34. Qh5+ {[%emt 0:00:29]} g6 {[%emt 0:00:30]} 35. Qh7+ {[%emt 0:00:05]} Ke8 {[%emt 0:00:05]} 36. Qxg6+ {[%emt 0:00:36]} Kd7 {[%emt 0:00:01]} 37. Qg4 {[%emt 0:00:35]} Kxc7 {[%emt 0:01:01]} 38. Qf4+ {[%emt 0:00:01]} Qxf4 {[%emt 0:00:06]} 39. Nxf4 {[%emt 0:00:02]} e5 {[%emt 0:00:10]} 40. Nd5+ {[%emt 0:00:02]} Kd6 {[%emt 0:00:02]} 41. Nxb6 {[%emt 0:00:21]} Bd8 {[%emt 0:00:04]} 42. Nxc8+ {[%emt 0:00:02]} 1-0

[Event "NOR-ch Youth 2019"]
[Site "Skien"]
[Date "2019.11.09"]
[Round "3.19"]
[White "Waage, Oline Sundby"]
[Black "Brattgjerd, Isak Vinh"]
[Result "0-1"]
[ECO "B50"]
[WhiteElo "1247"]
[BlackElo "1699"]
[Annotator "NA RC"]
[PlyCount "104"]
[EventDate "2019.11.08"]
[EventType "swiss"]
[EventCountry "NOR"]
[SourceTitle "playchess.com"]
[Source "ChessBase"]
[SourceQuality "1"]
[TimeControl "2400+10"]

1. e4 {[%emt 0:00:00]} c5 {[%emt 0:00:00]} 2. Nf3 {[%emt 0:00:00]} d6 {[%emt 0:00:00]} 3. Bc4 {[%emt 0:00:11]} Nf6 {[%emt 0:00:00]} 4. d3 {[%emt 0:00:12]} e6 {[%emt 0:00:02]} 5. Nc3 {[%emt 0:00:42]} d5 {[%emt 0:00:35]} 6. Bb5+ {[%emt 0:00:25]} Bd7 {[%emt 0:00:18]} 7. Bxd7+ {[%emt 0:00:06]} Nbxd7 {[%emt 0:00:03]} 8. Bg5 {[%emt 0:00:37]} Be7 {[%emt 0:00:08]} 9. Qd2 {[%emt 0:01:03]} h6 {[%emt 0:00:19]} 10. Bxf6 {[%emt 0:00:54]} Nxf6 {[%emt 0:00:04]} 11. O-O {[%emt 0:00:50]} O-O {[%emt 0:01:00]} 12. h3 {[%emt 0:01:04]} Qc7 {[%emt 0:01:02]} 13. Rfe1 {[%emt 0:02:00]} Rfe8 {[%emt 0:01:47]} 14. a4 {[%emt 0:02:19]} Rad8 {[%emt 0:03:05]} 15. Qe2 {[%emt 0:01:24]} Qb6 {[%emt 0:02:13]} 16. b3 {[%emt 0:01:07]} a6 {[%emt 0:03:28]} 17. a5 {[%emt 0:00:53]} Qc7 {[%emt 0:01:24]} 18. Qd2 {[%emt 0:04:49]} c4 {[%emt 0:03:57]} 19. exd5 {[%emt 0:03:46]} exd5 {[%emt 0:02:11]} 20. Rec1 {[%emt 0:01:43]} Bb4 {[%emt 0:03:15]} 21. d4 {[%emt 0:03:10]} Ne4 {[%emt 0:02:00]} 22. Nxd5 {[%emt 0:01:49]} Bxd2 {[%emt 0:02:15]} 23. Nxc7 {[%emt 0:00:11]} Re7 {[%emt 0:00:01]} 24. Nxd2 {[%emt 0:00:26]} Nxd2 {[%emt 0:00:02]} 25. Rd1 {[%emt 0:01:19]} c3 {[%emt 0:00:06]} 26. Nxa6 {[%emt 0:00:41]} bxa6 {[%emt 0:00:02]} 27. Ra4 {[%emt 0:00:41]} Red7 {[%emt 0:00:21]} 28. Re1 {[%emt 0:01:51]} Rxd4 {[%emt 0:00:04]} 29. Rxd4 {[%emt 0:00:39]} Rxd4 {[%emt 0:00:03]} 30. Re8+ {[%emt 0:00:10]} Kh7 {[%emt 0:00:01]} 31. Ra8 {[%emt 0:00:16]} Rd6 {[%emt 0:00:33]} 32. Rb8 {[%emt 0:00:23]} Rd5 {[%emt 0:03:07]} 33. b4 {[%emt 0:00:17]} Nc4 {[%emt 0:00:31]} 34. b5 {[%emt 0:00:57]} Rxb5 {[%emt 0:01:02]} 35. Rxb5 {[%emt 0:00:06]} axb5 {[%emt 0:00:01]} 36. a6 {[%emt 0:00:21]} Kg6 {[%emt 0:00:29]} 37. a7 {[%emt 0:00:11]} Nb6 {[%emt 0:00:01]} 38. Kf1 {[%emt 0:00:14]} Kf5 {[%emt 0:00:06]} 39. Ke2 {[%emt 0:00:15]} Ke4 {[%emt 0:00:06]} 40. Kd1 {[%emt 0:00:23]} Kd4 {[%emt 0:00:15]} 41. Kc1 {[%emt 0:00:10]} Kc4 {[%emt 0:00:10]} 42. g3 {[%emt 0:00:15]} g5 {[%emt 0:00:16]} 43. g4 {[%emt 0:00:07]} b4 {[%emt 0:00:31]} 44. Kb1 {[%emt 0:00:22]} b3 {[%emt 0:00:04]} 45. cxb3+ {[%emt 0:00:37]} Kxb3 {[%emt 0:00:02]} 46. Kc1 {[%emt 0:00:25]} c2 {[%emt 0:00:02]} 47. f3 {[%emt 0:00:16]} Kc3 {[%emt 0:00:06]} 48. a8=Q {[%emt 0:00:36]} Nxa8 {[%emt 0:00:02]} 49. h4 {[%emt 0:00:14]} gxh4 {[%emt 0:00:01]} 50. g5 {[%emt 0:00:20]} h3 {[%emt 0:00:07]} 51. gxh6 {[%emt 0:00:11]} h2 {[%emt 0:00:02]} 52. h7 {[%emt 0:00:05]} h1=Q# {[%emt 0:00:07]} 0-1

[Event "NOR-ch Youth 2019"]
[Site "Skien"]
[Date "2019.11.09"]
[Round "3.20"]
[White "Ostensen, Nicolai Maxime"]
[Black "Salte, Hakon"]
[Result "1-0"]
[ECO "A05"]
[WhiteElo "1691"]
[BlackElo "1285"]
[Annotator "NA RC"]
[PlyCount "55"]
[EventDate "2019.11.08"]
[EventType "swiss"]
[EventCountry "NOR"]
[SourceTitle "playchess.com"]
[Source "ChessBase"]
[SourceQuality "1"]
[TimeControl "2400+10"]

1. e4 {[%emt 0:00:00]} g6 {[%emt 0:00:13]} 2. Nc3 {[%emt 0:00:32]} d6 {[%emt 0:00:35]} 3. Nf3 {[%emt 0:00:41]} Nf6 {[%emt 0:00:10]} 4. d3 {[%emt 0:00:50]} Bg7 {[%emt 0:00:38]} 5. g3 {[%emt 0:00:18]} Nc6 {[%emt 0:01:01]} 6. Bg2 {[%emt 0:00:21]} O-O {[%emt 0:02:35]} 7. O-O {[%emt 0:00:19]} e5 {[%emt 0:02:06]} 8. Nh4 {[%emt 0:04:21]} Qe7 {[%emt 0:04:28]} 9. Bg5 {[%emt 0:08:53]} Be6 {[%emt 0:03:50]} 10. Qc1 {[%emt 0:04:33]} Qd7 {[%emt 0:01:06]} 11. f4 {[%emt 0:03:53]} exf4 {[%emt 0:03:45]} 12. Bxf4 {[%emt 0:01:00]} Bh3 {[%emt 0:02:28]} 13. Bg5 {[%emt 0:04:30]} Bxg2 {[%emt 0:04:30]} 14. Kxg2 {[%emt 0:00:37]} Nh5 {[%emt 0:00:55]} 15. Bh6 {[%emt 0:02:43]} Nd4 {[%emt 0:03:04]} 16. Bxg7 {[%emt 0:00:29]} Kxg7 {[%emt 0:00:31]} 17. Nf3 {[%emt 0:01:52]} Ne6 {[%emt 0:01:34]} 18. Qe3 {[%emt 0:01:32]} c6 {[%emt 0:01:54]} 19. Rae1 {[%emt 0:00:41]} b5 {[%emt 0:01:02]} 20. a3 {[%emt 0:01:20]} a5 {[%emt 0:00:24]} 21. Na2 {[%emt 0:00:15]} Rab8 {[%emt 0:00:57]} 22. c3 {[%emt 0:00:12]} Rfe8 {[%emt 0:00:27]} 23. Ng5 {[%emt 0:01:49]} f5 {[%emt 0:01:01]} 24. exf5 {[%emt 0:00:20]} Nef4+ {[%emt 0:00:19]} 25. gxf4 {[%emt 0:00:54]} Rxe3 {[%emt 0:00:13]} 26. Rxe3 {[%emt 0:00:13]} Qxf5 {[%emt 0:00:20]} 27. Re7+ {[%emt 0:00:23]} Kf6 {[%emt 0:00:15]} 28. Rf7# {[%emt 0:00:01]} 1-0

[Event "NOR-ch Youth 2019"]
[Site "Skien"]
[Date "2019.11.09"]
[Round "4.2"]
[White "Fossan, Aleksander"]
[Black "Unhjem, Bjorn Robert Lovoll"]
[Result "1/2-1/2"]
[ECO "B22"]
[WhiteElo "2179"]
[BlackElo "1942"]
[Annotator "NA"]
[PlyCount "54"]
[EventDate "2019.11.08"]
[EventType "swiss"]
[EventCountry "NOR"]
[SourceTitle "playchess.com"]
[Source "ChessBase"]
[SourceQuality "1"]
[TimeControl "5400+30"]

{[%evp 8,40,18,12,18,20,18,5,25,7,34,5,20,24,18,10,66,92,84,66,109,25,32,55,57,56,158,127,226,32767,17,32767,32767,32767,-150]} 1. e4 {[%emt 0:00:00]} c5 {[%emt 0:00:00]} 2. c3 {[%emt 0:00:00]} Nf6 {[%emt 0:00:17]} 3. e5 {[%emt 0:00:00]} Nd5 {[%emt 0:00:08]} 4. d4 {[%emt 0:00:00]} e6 {[%emt 0:00:23]} 5. Nf3 {[%emt 0:00:05]} cxd4 {[%emt 0:00:11]} 6. cxd4 {[%emt 0:00:24]} d6 {[%emt 0:00:30]} 7. Bc4 {[%emt 0:00:41]} Nc6 {[%emt 0:00:17]} 8. O-O {[%emt 0:00:27]} Be7 {[%emt 0:00:39]} 9. a3 {[%emt 0:00:11]} Qc7 {[%emt 0:00:32] B22: Sicilian: 2 c3} 10. Re1 {[%emt 0:07:54]} O-O {[%emt 0:02:49]} 11. Bd3 {[%emt 0:08:06]} Qd8 $146 {[%emt 0:17:00]} ({Predecessor:} 11... dxe5 12. dxe5 Rd8 13. Qe2 g6 14. Bd2 b6 15. Nc3 Nxc3 16. Bxc3 Bb7 17. h4 Rd7 18. h5 Rad8 19. Bb5 Qc8 20. Qe3 {1-0 (32) Kharlov,A (2639)-Gallagher,J (2519) Kolkata 2001}) 12. Qc2 {[%emt 0:06:28]} h6 {[%emt 0:04:43]} 13. Nc3 {[%emt 0:03:32]} Bd7 {[%emt 0:01:34]} 14. Ne4 {[%emt 0:07:10]} ({White should try} 14. Qe2 $16) 14... dxe5 {[%emt 0:06:29]} 15. dxe5 {[%emt 0:00:03]} Qc7 {[%emt 0:00:29]} 16. Ng3 {[%emt 0:01:58]} Rac8 {[%emt 0:02:15]} (16... Rad8 $14) 17. Qe2 {[%emt 0:02:03]} Bc5 {[%emt 0:11:14]} (17... Qb6 $16) 18. Nh4 {[%emt 0:19:34]} Nce7 {[%emt 0:06:55]} 19. Nh5 {[%emt 0:07:16]} f5 {[%emt 0:06:02]} 20. Qf3 {[%emt 0:06:45] [#]} Be8 $17 {[%emt 0:03:16]} 21. Bxh6 {[%emt 0:10:32]} Bxh5 {[%emt 0:00:12]} 22. Qxh5 {[%emt 0:00:02]} gxh6 {[%emt 0:04:29]} 23. Qxh6 {[%emt 0:00:02]} Qb6 {[%emt 0:01:23]} 24. Qg5+ {[%emt 0:03:00]} Kf7 {[%emt 0:00:16]} 25. Qh5+ {[%emt 0:00:02]} Kg7 {[%emt 0:00:14]} 26. Qg5+ {[%emt 0:00:35]} Kf7 {[%emt 0:00:07]} 27. Qh5+ {[%emt 0:00:12]} Kg7 {[%emt 0:00:16]} 1/2-1/2

[Event "NOR-ch Youth 2019"]
[Site "Skien"]
[Date "2019.11.09"]
[Round "4.4"]
[White "Hestvik, Elias"]
[Black "Holm, Karl Oskar Magnus"]
[Result "1/2-1/2"]
[ECO "B01"]
[WhiteElo "1784"]
[BlackElo "1751"]
[Annotator "NA RC"]
[PlyCount "79"]
[EventDate "2019.11.08"]
[EventType "swiss"]
[EventCountry "NOR"]
[SourceTitle "playchess.com"]
[Source "ChessBase"]
[SourceQuality "1"]
[TimeControl "5400+30"]

1. e4 {[%emt 0:00:24]} d5 {[%emt 0:00:00]} 2. exd5 {[%emt 0:01:04]} Qxd5 {[%emt 0:00:00]} 3. d4 {[%emt 0:01:48]} e5 {[%emt 0:00:04]} 4. dxe5 {[%emt 0:07:03]} Qxd1+ {[%emt 0:00:14]} 5. Kxd1 {[%emt 0:00:12]} Nc6 {[%emt 0:05:54]} 6. f4 {[%emt 0:07:44]} Bf5 {[%emt 0:00:50]} 7. c3 {[%emt 0:07:06]} O-O-O+ {[%emt 0:00:45]} 8. Nd2 {[%emt 0:05:35]} f6 {[%emt 0:01:43]} 9. Ngf3 {[%emt 0:03:15]} Nge7 {[%emt 0:08:14]} 10. Bc4 {[%emt 0:04:50]} Nd5 {[%emt 0:17:57]} 11. Bxd5 {[%emt 0:03:17]} Rxd5 {[%emt 0:00:09]} 12. exf6 {[%emt 0:15:34]} gxf6 {[%emt 0:01:59]} 13. b4 {[%emt 0:02:23]} Bh6 {[%emt 0:20:29]} 14. g3 {[%emt 0:02:04]} Rhd8 {[%emt 0:01:52]} 15. Ke2 {[%emt 0:06:04]} Rd3 {[%emt 0:14:02]} 16. h3 {[%emt 0:13:04]} Rxc3 {[%emt 0:10:11]} 17. Bb2 {[%emt 0:02:14]} Re8+ {[%emt 0:02:43]} 18. Kf2 {[%emt 0:02:13]} Rc2 {[%emt 0:01:46]} 19. Bxf6 {[%emt 0:00:51]} Nxb4 {[%emt 0:00:30]} 20. Be5 {[%emt 0:03:43]} Nd3+ {[%emt 0:02:51]} 21. Ke2 {[%emt 0:01:55]} Nxe5 {[%emt 0:01:12]} 22. Nxe5 {[%emt 0:00:27]} Bg7 {[%emt 0:03:10]} 23. Ke3 {[%emt 0:03:45]} Rc3+ {[%emt 0:02:09]} 24. Kf2 {[%emt 0:02:51]} Bxe5 {[%emt 0:00:23]} 25. fxe5 {[%emt 0:00:20]} Rxe5 {[%emt 0:00:21]} 26. g4 {[%emt 0:00:28]} Rc2 {[%emt 0:01:03]} 27. Rad1 {[%emt 0:00:59]} Rd5 {[%emt 0:01:03]} 28. gxf5 {[%emt 0:01:29]} Rcxd2+ {[%emt 0:00:21]} 29. Rxd2 {[%emt 0:00:03]} Rxd2+ {[%emt 0:00:08]} 30. Ke3 {[%emt 0:00:05]} Rd7 {[%emt 0:00:18]} 31. Kf4 {[%emt 0:00:38]} Kd8 {[%emt 0:00:14]} 32. Rg1 {[%emt 0:01:34]} Ke8 {[%emt 0:01:23]} 33. Ke5 {[%emt 0:00:51]} Rf7 {[%emt 0:01:38]} 34. Ke6 {[%emt 0:00:27]} Re7+ {[%emt 0:00:18]} 35. Kf6 {[%emt 0:00:01]} Rf7+ {[%emt 0:00:09]} 36. Ke6 {[%emt 0:00:08]} Re7+ {[%emt 0:00:05]} 37. Kf6 {[%emt 0:00:06]} Rf7+ {[%emt 0:01:31]} 38. Ke5 {[%emt 0:02:12]} c5 {[%emt 0:00:13]} 39. f6 c4 {[%emt 0:00:06]} 40. Rg7 {[%emt 0:00:07]} 1/2-1/2

[Event "NOR-ch Youth 2019"]
[Site "Skien"]
[Date "2019.11.09"]
[Round "4.5"]
[White "Eckholdt, Carl Marcus"]
[Black "Opseth, Oliver"]
[Result "0-1"]
[ECO "A45"]
[WhiteElo "1298"]
[BlackElo "1795"]
[Annotator "NA RC"]
[PlyCount "124"]
[EventDate "2019.11.08"]
[EventType "swiss"]
[EventCountry "NOR"]
[SourceTitle "playchess.com"]
[Source "ChessBase"]
[SourceQuality "1"]
[TimeControl "5400+30"]

1. d4 {[%emt 0:00:00]} c5 {[%emt 0:00:16]} 2. dxc5 {[%emt 0:01:39]} Nc6 {[%emt 0:00:20]} 3. e4 {[%emt 0:00:19]} e6 {[%emt 0:03:30]} 4. Be3 {[%emt 0:01:50]} Nf6 {[%emt 0:00:12]} 5. Nc3 {[%emt 0:01:29]} Qa5 {[%emt 0:00:30]} 6. Bd3 {[%emt 0:02:33]} Bxc5 {[%emt 0:02:15]} 7. Bxc5 {[%emt 0:01:05]} Qxc5 {[%emt 0:00:05]} 8. Nf3 {[%emt 0:01:56]} O-O {[%emt 0:02:51]} 9. O-O {[%emt 0:00:33]} e5 {[%emt 0:01:25]} 10. Nd5 {[%emt 0:03:54]} Nxd5 {[%emt 0:04:56]} 11. exd5 {[%emt 0:00:27]} Ne7 {[%emt 0:00:14]} 12. Nxe5 {[%emt 0:10:19]} Nxd5 {[%emt 0:02:29]} 13. Qf3 {[%emt 0:08:09]} Nf6 {[%emt 0:02:03]} 14. Rfe1 {[%emt 0:01:54]} d5 {[%emt 0:03:18]} 15. Bf5 {[%emt 0:05:07]} Bxf5 {[%emt 0:10:26]} 16. Qxf5 {[%emt 0:00:18]} Rad8 {[%emt 0:04:46]} 17. Nf3 {[%emt 0:05:24]} Qb6 {[%emt 0:04:25]} 18. b3 {[%emt 0:02:40]} Ne4 {[%emt 0:06:37]} 19. Re3 {[%emt 0:02:14]} Rde8 {[%emt 0:07:59]} 20. Rae1 {[%emt 0:05:03]} Rd8 {[%emt 0:05:19]} 21. Rd1 {[%emt 0:00:54]} Qc6 {[%emt 0:03:06]} 22. Nd4 {[%emt 0:02:33]} Qc8 {[%emt 0:02:15]} 23. Red3 {[%emt 0:04:27]} Rfe8 {[%emt 0:03:02]} 24. Qxc8 {[%emt 0:00:19]} Rxc8 {[%emt 0:00:05]} 25. Nf5 {[%emt 0:01:07]} Rxc2 {[%emt 0:03:58]} 26. Rxd5 {[%emt 0:01:15]} h6 {[%emt 0:00:49]} 27. Rd7 {[%emt 0:03:28]} Nc5 {[%emt 0:05:21]} 28. Ne3 {[%emt 0:08:57]} Rxa2 {[%emt 0:02:14]} 29. Rc7 {[%emt 0:00:44]} Ne4 {[%emt 0:00:57]} 30. Nc2 {[%emt 0:03:02]} Nf6 {[%emt 0:03:57]} 31. Ne3 {[%emt 0:00:45]} Ne4 {[%emt 0:01:10]} 32. Nc2 {[%emt 0:00:10]} Rb2 {[%emt 0:00:10]} 33. b4 {[%emt 0:02:39]} Kh7 {[%emt 0:01:08]} 34. g3 {[%emt 0:01:07]} Re6 {[%emt 0:01:31]} 35. Rxf7 {[%emt 0:04:10]} Rxc2 {[%emt 0:03:24]} 36. Rdd7 {[%emt 0:00:18]} Rg6 {[%emt 0:00:24]} 37. Rxb7 {[%emt 0:00:39]} Nd6 {[%emt 0:02:17]} 38. Rbc7 {[%emt 0:00:09]} Nxf7 {[%emt 0:00:18]} 39. Rxc2 {[%emt 0:00:12]} Rb6 {[%emt 0:00:06]} 40. Rc7 {[%emt 0:00:38]} Ne5 {[%emt 0:00:25]} 41. Rxa7 {[%emt 0:00:19]} Rxb4 {[%emt 0:00:03]} 42. Kg2 {[%emt 0:01:25]} Rb2 {[%emt 0:00:16]} 43. Re7 {[%emt 0:00:34]} Nd3 {[%emt 0:02:03]} 44. Rf7 {[%emt 0:00:08]} Kg6 {[%emt 0:00:17]} 45. Rf8 {[%emt 0:00:17]} Rb6 {[%emt 0:02:09]} 46. Rd8 {[%emt 0:00:42]} Ne5 {[%emt 0:00:26]} 47. h3 {[%emt 0:00:28]} Rb7 {[%emt 0:00:59]} 48. g4 {[%emt 0:00:35]} Rd7 {[%emt 0:00:13]} 49. Re8 {[%emt 0:01:01]} Nf7 {[%emt 0:00:38]} 50. h4 {[%emt 0:00:29]} Rd4 {[%emt 0:01:03]} 51. Kg3 {[%emt 0:00:16]} Nd6 {[%emt 0:01:06]} 52. Rf8 {[%emt 0:01:47]} Ne4+ {[%emt 0:00:49]} 53. Kh3 {[%emt 0:00:41]} Nf6 {[%emt 0:01:22]} 54. g5 {[%emt 0:00:59]} hxg5 {[%emt 0:00:23]} 55. hxg5 {[%emt 0:00:01]} Kxg5 {[%emt 0:00:06]} 56. Rf7 {[%emt 0:00:23]} g6 {[%emt 0:00:26]} 57. Rb7 {[%emt 0:00:39]} Ne4 {[%emt 0:00:55]} 58. f3 {[%emt 0:01:24]} Nd6 {[%emt 0:00:30]} 59. Rb2 {[%emt 0:00:22]} Rh4+ {[%emt 0:01:47]} 60. Kg3 {[%emt 0:00:14]} Nf5+ {[%emt 0:00:05]} 61. Kg2 {[%emt 0:00:37]} Rd4 {[%emt 0:00:45]} 62. Ra2 {[%emt 0:00:35]} Kf4 {[%emt 0:00:17]} 0-1

[Event "NOR-ch Youth 2019"]
[Site "Skien"]
[Date "2019.11.09"]
[Round "4.9"]
[White "Lystad, Maximilian L"]
[Black "Nilsen, Tobias Lang"]
[Result "0-1"]
[ECO "A34"]
[WhiteElo "1612"]
[BlackElo "2016"]
[Annotator "NA RC"]
[PlyCount "86"]
[EventDate "2019.11.08"]
[EventType "swiss"]
[EventCountry "NOR"]
[SourceTitle "playchess.com"]
[Source "ChessBase"]
[SourceQuality "1"]
[TimeControl "5400+30"]

1. c4 {[%emt 0:00:00]} Nf6 {[%emt 0:00:00]} 2. Nc3 {[%emt 0:00:00]} c5 {[%emt 0:00:00]} 3. g3 {[%emt 0:00:00]} d5 {[%emt 0:00:00]} 4. cxd5 {[%emt 0:00:00]} Nxd5 {[%emt 0:00:00]} 5. Bg2 {[%emt 0:00:00]} Nc7 {[%emt 0:00:00]} 6. Nf3 {[%emt 0:00:30]} Nc6 {[%emt 0:00:04]} 7. d3 {[%emt 0:00:05]} e5 {[%emt 0:00:32]} 8. O-O {[%emt 0:00:36]} Be7 {[%emt 0:00:05]} 9. b3 {[%emt 0:03:24]} O-O {[%emt 0:01:32]} 10. Bb2 {[%emt 0:00:21]} Bd7 {[%emt 0:03:54]} 11. Rc1 {[%emt 0:02:10]} f6 {[%emt 0:00:07]} 12. Ne4 {[%emt 0:13:57]} Ne6 {[%emt 0:17:40]} 13. Nfd2 {[%emt 0:10:44]} Be8 {[%emt 0:10:01]} 14. Ba3 {[%emt 0:06:23]} b6 {[%emt 0:03:12]} 15. Nc3 {[%emt 0:02:36]} Rc8 {[%emt 0:01:04]} 16. Nd5 $15 {[%emt 0:14:11]} Bh5 {[%emt 0:07:18]} 17. Nc4 {[%emt 0:11:14]} Ned4 {[%emt 0:01:34]} 18. Re1 {[%emt 0:00:31]} Kh8 {[%emt 0:17:38]} 19. Nxe7 {[%emt 0:04:42]} Qxe7 {[%emt 0:00:09]} 20. f3 {[%emt 0:00:35]} Rcd8 {[%emt 0:01:53]} 21. e3 {[%emt 0:00:39]} Ne6 {[%emt 0:00:35]} 22. Qc2 {[%emt 0:02:34]} Bg6 {[%emt 0:00:31]} 23. Rcd1 {[%emt 0:00:39]} b5 {[%emt 0:00:37]} 24. f4 {[%emt 0:02:43]} bxc4 {[%emt 0:01:50]} 25. Bxc6 {[%emt 0:00:06]} cxd3 {[%emt 0:00:08]} 26. Qc3 {[%emt 0:00:12]} e4 {[%emt 0:02:44]} 27. Rd2 {[%emt 0:04:44]} Qc7 {[%emt 0:12:59]} 28. Bb5 {[%emt 0:01:15]} Qb6 {[%emt 0:01:17]} 29. Bc4 {[%emt 0:01:47]} Nc7 {[%emt 0:00:47]} 30. Rc1 {[%emt 0:07:17]} Rc8 {[%emt 0:00:30]} 31. Qa1 {[%emt 0:03:59]} Qa5 {[%emt 0:00:37]} 32. Qb2 {[%emt 0:00:08]} Rb8 {[%emt 0:01:19]} 33. Rc3 {[%emt 0:04:27]} Rfc8 {[%emt 0:02:49]} 34. Qc1 {[%emt 0:00:26]} Be8 {[%emt 0:02:48]} 35. Kf2 {[%emt 0:02:24]} Rb4 {[%emt 0:01:51]} 36. Bb2 {[%emt 0:02:02]} Rbb8 {[%emt 0:02:35]} 37. Ba3 {[%emt 0:00:10]} Bd7 {[%emt 0:00:38]} 38. Bb2 {[%emt 0:00:57]} Qb6 {[%emt 0:02:22]} 39. Ba3 {[%emt 0:00:28]} a6 {[%emt 0:01:37]} 40. Bf7 {[%emt 0:00:30]} Nb5 {[%emt 0:01:48]} 41. Bxc5 {[%emt 0:00:11]} Qb7 {[%emt 0:00:11]} 42. Rc4 {[%emt 0:00:36]} Bg4 {[%emt 0:00:12]} 43. Bd4 {[%emt 0:00:46]} Qxf7 {[%emt 0:00:38]} 0-1

[Event "NOR-ch Youth 2019"]
[Site "Skien"]
[Date "2019.11.09"]
[Round "4.11"]
[White "Dahl, Max"]
[Black "Shehzad, Shazil"]
[Result "0-1"]
[ECO "D38"]
[WhiteElo "1922"]
[BlackElo "2173"]
[Annotator "NA"]
[PlyCount "100"]
[EventDate "2019.11.08"]
[EventType "swiss"]
[EventCountry "NOR"]
[SourceTitle "playchess.com"]
[Source "ChessBase"]
[SourceQuality "1"]
[TimeControl "5400+30"]

1. Nf3 {[%emt 0:00:00]} d5 {[%emt 0:00:00]} 2. d4 {[%emt 0:00:27]} Nf6 {[%emt 0:00:05]} 3. c4 {[%emt 0:01:55]} e6 {[%emt 0:00:09]} 4. cxd5 {[%emt 0:06:34]} exd5 {[%emt 0:00:14]} 5. Nc3 {[%emt 0:02:26]} Bb4 {[%emt 0:03:33]} 6. Bg5 {[%emt 0:07:51]} h6 {[%emt 0:01:48]} 7. Bxf6 {[%emt 0:01:03]} Qxf6 {[%emt 0:00:16]} 8. a3 {[%emt 0:06:11]} Bxc3+ $1 {[%emt 0:00:31]} 9. bxc3 {[%emt 0:00:07]} O-O {[%emt 0:02:02]} 10. e3 {[%emt 0:03:34]} Nc6 {[%emt 0:06:38]} 11. Bd3 {[%emt 0:06:30]} Bf5 {[%emt 0:01:59]} 12. Bxf5 {[%emt 0:04:19]} Qxf5 {[%emt 0:00:06]} 13. O-O {[%emt 0:01:51]} Na5 {[%emt 0:01:36]} 14. Qb1 {[%emt 0:06:49]} Qe6 {[%emt 0:02:14]} 15. Qd3 {[%emt 0:08:33]} c6 {[%emt 0:02:34]} 16. Nd2 {[%emt 0:03:44]} Rfd8 {[%emt 0:06:28]} 17. Rfb1 {[%emt 0:06:49]} b6 {[%emt 0:03:01]} 18. Rc1 $11 {[%emt 0:08:15]} Rac8 {[%emt 0:05:08]} 19. Rab1 {[%emt 0:08:27]} Qd6 {[%emt 0:01:19]} 20. c4 {[%emt 0:06:14]} c5 {[%emt 0:02:27]} 21. dxc5 {[%emt 0:02:20]} Rxc5 {[%emt 0:01:06]} 22. Rb5 {[%emt 0:05:09]} dxc4 {[%emt 0:04:21]} 23. Qxd6 {[%emt 0:00:22]} Rxd6 {[%emt 0:00:03]} 24. Rxc5 {[%emt 0:00:11]} bxc5 {[%emt 0:00:05]} 25. Ne4 {[%emt 0:01:07]} Rd3 {[%emt 0:00:43]} 26. Nxc5 {[%emt 0:01:41]} Rxa3 {[%emt 0:00:46]} 27. Kf1 {[%emt 0:00:23]} Nb3 {[%emt 0:00:20]} 28. Nxb3 {[%emt 0:00:25]} cxb3 {[%emt 0:00:06]} 29. Rb1 {[%emt 0:00:30]} a5 {[%emt 0:00:07]} 30. Ke2 {[%emt 0:00:06]} Ra2+ {[%emt 0:00:26]} 31. Kd3 {[%emt 0:00:12]} a4 {[%emt 0:00:27]} 32. Kc3 {[%emt 0:00:14]} Rxf2 {[%emt 0:00:37]} 33. Kb4 {[%emt 0:00:20]} Rxg2 {[%emt 0:00:41]} 34. Kxa4 {[%emt 0:00:05]} b2 {[%emt 0:00:33]} 35. Kb3 {[%emt 0:00:05]} Rxh2 {[%emt 0:00:05]} 36. Kc3 {[%emt 0:00:02]} Kf8 {[%emt 0:00:30]} 37. Kd4 {[%emt 0:00:13]} Ke7 {[%emt 0:00:08]} 38. Ke5 {[%emt 0:00:05]} Rh5+ {[%emt 0:00:07]} 39. Kd4 {[%emt 0:00:07]} Rb5 {[%emt 0:00:04]} 40. e4 {[%emt 0:00:14]} h5 {[%emt 0:00:02]} 41. Ke3 {[%emt 0:00:07]} g5 {[%emt 0:00:05]} 42. Kf3 {[%emt 0:00:04]} Ke6 {[%emt 0:00:04]} 43. Ke3 {[%emt 0:00:04]} Ke5 {[%emt 0:00:03]} 44. Kd3 {[%emt 0:00:06]} h4 {[%emt 0:00:06]} 45. Kc4 {[%emt 0:00:05]} Rb8 {[%emt 0:00:04]} 46. Kd3 {[%emt 0:00:05]} h3 {[%emt 0:00:05]} 47. Ke3 {[%emt 0:00:04]} h2 {[%emt 0:00:01]} 48. Kf2 {[%emt 0:00:05]} h1=Q {[%emt 0:00:11]} 49. Rxh1 {[%emt 0:00:08]} b1=Q {[%emt 0:00:07]} 50. Rxb1 {[%emt 0:00:06]} Rxb1 {[%emt 0:00:05]} 0-1